[Event "*** Titled Tuesday Blitz"]
[Site "Chess.com"]
[Date "2018.06.05"]
[Round "1"]
[White "x-6099009240"]
[Black "AlexanderKing"]
[Result "0-1"]
[WhiteElo "2080"]
[BlackElo "2468"]
[TimeControl "180+2"]
[EndTime "13:08:36 PDT"]
[Termination "AlexanderKing won by checkmate"]

1. e4 {[%clk 0:03:01.9]} 1... e6 {[%clk 0:03:01.5]} 2. Nf3 {[%clk 0:03:02.6]}
2... d5 {[%clk 0:03:02.7]} 3. e5 {[%clk 0:03:04.2]} 3... c5 {[%clk 0:03:03.3]}
4. b4 {[%clk 0:03:05.8]} 4... c4 {[%clk 0:03:04.3]} 5. c3 {[%clk 0:03:06.7]}
5... a5 {[%clk 0:03:05.5]} 6. b5 {[%clk 0:03:07.6]} 6... Nd7 {[%clk 0:03:07]} 7.
d3 {[%clk 0:03:01.9]} 7... cxd3 {[%clk 0:03:03.2]} 8. Bxd3 {[%clk 0:03:03.8]}
8... Qc7 {[%clk 0:03:04.5]} 9. Qe2 {[%clk 0:03:04.6]} 9... Ne7 {[%clk
0:02:59.9]} 10. O-O {[%clk 0:03:00.9]} 10... Ng6 {[%clk 0:02:50.1]} 11. Re1
{[%clk 0:03:02.1]} 11... Be7 {[%clk 0:02:48.2]} 12. a4 {[%clk 0:02:59]} 12... b6
{[%clk 0:02:39.3]} 13. Bxg6 {[%clk 0:02:43.4]} 13... hxg6 {[%clk 0:02:38.5]} 14.
Nd4 {[%clk 0:02:44.4]} 14... Bb7 {[%clk 0:02:38.2]} 15. Bb2 {[%clk 0:02:43.1]}
15... Rc8 {[%clk 0:02:38.6]} 16. Nd2 {[%clk 0:02:39.8]} 16... Rh5 {[%clk
0:01:50.6]} 17. f4 {[%clk 0:02:35.2]} 17... Rh8 {[%clk 0:01:38.5]} 18. Rac1
{[%clk 0:02:30.5]} 18... Nc5 {[%clk 0:01:38.4]} 19. Ra1 {[%clk 0:02:24.6]} 19...
Ne4 {[%clk 0:01:32]} 20. Nxe4 {[%clk 0:02:24.1]} 20... dxe4 {[%clk 0:01:33.9]}
21. Kh1 {[%clk 0:02:22.4]} 21... Qc4 {[%clk 0:01:21.9]} 22. Nc6 {[%clk 0:01:57]}
22... Qxe2 {[%clk 0:01:16.1]} 23. Rxe2 {[%clk 0:01:58.9]} 23... Bxc6 {[%clk
0:01:12.7]} 24. bxc6 {[%clk 0:02:00.8]} 24... Rxc6 {[%clk 0:01:14.6]} 25. Rxe4
{[%clk 0:02:02.3]} 25... Kf8 {[%clk 0:01:15.1]} 26. Rd1 {[%clk 0:01:56]} 26...
Rc7 {[%clk 0:00:41.3]} 27. Red4 {[%clk 0:01:55.1]} 27... Ke8 {[%clk 0:00:33.7]}
28. Ba3 {[%clk 0:01:41.5]} 28... Rh4 {[%clk 0:00:18.7]} 29. g3 {[%clk
0:01:38.4]} 29... Rh5 {[%clk 0:00:13.3]} 30. Bxe7 {[%clk 0:01:36.4]} 30... Kxe7
{[%clk 0:00:15.2]} 31. Rd8 {[%clk 0:01:30.1]} 31... f6 {[%clk 0:00:10.5]} 32.
exf6+ {[%clk 0:01:23.5]} 32... gxf6 {[%clk 0:00:07.5]} 33. R1d3 {[%clk
0:01:14.8]} 33... Rhc5 {[%clk 0:00:06.8]} 34. Rb8 {[%clk 0:01:02.8]} 34... Rxc3
{[%clk 0:00:05]} 35. Rxc3 {[%clk 0:01:04.7]} 35... Rxc3 {[%clk 0:00:06.8]} 36.
Rb7+ {[%clk 0:01:06.4]} 36... Kd6 {[%clk 0:00:03.3]} 37. Rxb6+ {[%clk
0:01:08.3]} 37... Rc6 {[%clk 0:00:04.4]} 38. Rxc6+ {[%clk 0:00:58.4]} 38... Kxc6
{[%clk 0:00:06.3]} 39. h4 {[%clk 0:01:00]} 39... f5 {[%clk 0:00:06.3]} 40. Kg2
{[%clk 0:00:54.4]} 40... Kc5 {[%clk 0:00:07.6]} 41. g4 {[%clk 0:00:56.3]} 41...
fxg4 {[%clk 0:00:04.8]} 42. Kg3 {[%clk 0:00:57.7]} 42... Kb4 {[%clk 0:00:05.3]}
43. Kxg4 {[%clk 0:00:59.6]} 43... Kxa4 {[%clk 0:00:06.9]} 44. f5 {[%clk
0:01:00.2]} 44... exf5+ {[%clk 0:00:07.9]} 45. Kg5 {[%clk 0:01:01.7]} 45... Kb3
{[%clk 0:00:09.3]} 46. Kxg6 {[%clk 0:01:03.3]} 46... a4 {[%clk 0:00:11.2]} 47.
h5 {[%clk 0:01:04.5]} 47... a3 {[%clk 0:00:12.7]} 48. Kxf5 {[%clk 0:01:04.3]}
48... a2 {[%clk 0:00:14.2]} 49. h6 {[%clk 0:01:05.6]} 49... a1=Q {[%clk
0:00:15.5]} 50. Kg6 {[%clk 0:01:06.9]} 50... Qh8 {[%clk 0:00:17.1]} 51. Kh5
{[%clk 0:01:05.5]} 51... Kc4 {[%clk 0:00:19]} 52. Kg6 {[%clk 0:01:07.1]} 52...
Kd5 {[%clk 0:00:20.3]} 53. Kg5 {[%clk 0:01:08.8]} 53... Ke5 {[%clk 0:00:21.4]}
54. Kh5 {[%clk 0:01:10.7]} 54... Kf5 {[%clk 0:00:22.4]} 55. Kh4 {[%clk 0:01:12]}
55... Qc3 {[%clk 0:00:18.1]} 56. h7 {[%clk 0:01:11.5]} 56... Qf3 {[%clk
0:00:18.6]} 57. h8=Q {[%clk 0:01:10.1]} 57... Qg4# {[%clk 0:00:20.5]} 0-1

[Event "*** Titled Tuesday Blitz"]
[Site "Chess.com"]
[Date "2018.06.05"]
[Round "1"]
[White "walkingcreep"]
[Black "Zhuu96"]
[Result "0-1"]
[WhiteElo "2425"]
[BlackElo "2927"]
[TimeControl "180+2"]
[EndTime "13:08:39 PDT"]
[Termination "Zhuu96 won by resignation"]

1. e4 {[%clk 0:02:57.5]} 1... c5 {[%clk 0:02:57.6]} 2. Nf3 {[%clk 0:02:58.7]}
2... Nc6 {[%clk 0:02:56.4]} 3. Bb5 {[%clk 0:02:58.9]} 3... e6 {[%clk 0:02:54]}
4. d4 {[%clk 0:02:59.7]} 4... cxd4 {[%clk 0:02:52.7]} 5. Nxd4 {[%clk 0:03:01.6]}
5... Nge7 {[%clk 0:02:53.4]} 6. Nxc6 {[%clk 0:02:57]} 6... bxc6 {[%clk
0:02:53.9]} 7. Be2 {[%clk 0:02:55.2]} 7... Ng6 {[%clk 0:02:54.6]} 8. O-O {[%clk
0:02:55.3]} 8... e5 {[%clk 0:02:54.7]} 9. Nd2 {[%clk 0:02:48.3]} 9... Be7 {[%clk
0:02:54.3]} 10. Nc4 {[%clk 0:02:48.7]} 10... d5 {[%clk 0:02:50.9]} 11. exd5
{[%clk 0:02:45.9]} 11... cxd5 {[%clk 0:02:52.1]} 12. Ne3 {[%clk 0:02:44]} 12...
d4 {[%clk 0:02:53.3]} 13. Nc4 {[%clk 0:02:15.8]} 13... O-O {[%clk 0:02:49.8]}
14. Bf3 {[%clk 0:02:16.3]} 14... Rb8 {[%clk 0:02:48.1]} 15. Re1 {[%clk
0:02:17.5]} 15... f6 {[%clk 0:02:48.4]} 16. a3 {[%clk 0:02:14.9]} 16... Be6
{[%clk 0:02:48.9]} 17. Nd2 {[%clk 0:02:13.8]} 17... f5 {[%clk 0:02:47]} 18. Bh5
{[%clk 0:02:11.9]} 18... e4 {[%clk 0:02:47.9]} 19. b4 {[%clk 0:02:08.9]} 19...
Nf4 {[%clk 0:02:41.1]} 20. Nf1 {[%clk 0:02:04.3]} 20... Nxh5 {[%clk 0:02:37.8]}
21. Qxh5 {[%clk 0:02:06.2]} 21... Rc8 {[%clk 0:02:37.9]} 22. Qe2 {[%clk
0:01:56.5]} 22... Qc7 {[%clk 0:02:37.8]} 23. Bb2 {[%clk 0:01:55.9]} 23... Bf6
{[%clk 0:02:38.2]} 24. Rac1 {[%clk 0:01:55.5]} 24... Rfd8 {[%clk 0:02:36.4]} 25.
Nd2 {[%clk 0:01:48]} 25... Bg5 {[%clk 0:02:35.3]} 26. Red1 {[%clk 0:01:48.6]}
26... Qf7 {[%clk 0:02:29.4]} 27. Qa6 {[%clk 0:01:31.7]} 27... e3 {[%clk
0:02:21.1]} 28. fxe3 {[%clk 0:01:24.4]} 28... Bxe3+ {[%clk 0:02:22]} 29. Kh1
{[%clk 0:01:24.7]} 29... Bd5 {[%clk 0:02:22.6]} 30. Qf1 {[%clk 0:01:07.4]} 30...
f4 {[%clk 0:02:16.1]} 31. c4 {[%clk 0:01:07.4]} 31... dxc3 {[%clk 0:02:15.1]}
32. Rxc3 {[%clk 0:01:07.3]} 32... Rxc3 {[%clk 0:02:15.3]} 33. Bxc3 {[%clk
0:01:08.2]} 33... Rc8 {[%clk 0:02:16.6]} 34. Ba1 {[%clk 0:01:02.7]} 34... Rc2
{[%clk 0:02:04.8]} 35. Nf3 {[%clk 0:01:02.3]} 35... h6 {[%clk 0:02:02]} 36. Qd3
{[%clk 0:00:55.7]} 36... Ra2 {[%clk 0:01:58.2]} 37. Bc3 {[%clk 0:00:50.7]} 37...
Rxa3 {[%clk 0:01:57.6]} 38. Ne5 {[%clk 0:00:45.3]} 38... Qe6 {[%clk 0:01:52.4]}
39. Ra1 {[%clk 0:00:37.6]} 39... Rxa1+ {[%clk 0:01:43.6]} 40. Bxa1 {[%clk
0:00:39.5]} 40... Bb6 {[%clk 0:01:32.2]} 41. Qc3 {[%clk 0:00:37.6]} 41... Bd8
{[%clk 0:01:28.2]} 42. Qd4 {[%clk 0:00:30.1]} 42... Bg5 {[%clk 0:01:28.8]} 43.
Qxa7 {[%clk 0:00:30]} 43... Bf6 {[%clk 0:01:25.3]} 44. Qd4 {[%clk 0:00:29.2]}
44... f3 {[%clk 0:01:21.8]} 45. gxf3 {[%clk 0:00:25.1]} 45... Bxf3+ {[%clk
0:01:18.8]} 46. Kg1 {[%clk 0:00:26.5]} 46... Bb7 {[%clk 0:01:17.3]} 47. Qc4
{[%clk 0:00:24.5]} 47... Bd5 {[%clk 0:01:17.9]} 48. Qd4 {[%clk 0:00:25.1]} 48...
Kh7 {[%clk 0:01:16.1]} 49. Qd3+ {[%clk 0:00:24.4]} 49... Kg8 {[%clk 0:01:16.4]}
50. Qd4 {[%clk 0:00:26]} 50... Bd8 {[%clk 0:01:16.9]} 51. Qg4 {[%clk 0:00:23.5]}
51... Qf6 {[%clk 0:01:09]} 52. Qg6 {[%clk 0:00:18.1]} 52... Bb6+ {[%clk
0:01:09.1]} 0-1

[Event "*** Titled Tuesday Blitz"]
[Site "Chess.com"]
[Date "2018.06.05"]
[Round "1"]
[White "leoo2001"]
[Black "Kangoroo3000"]
[Result "1-0"]
[WhiteElo "1923"]
[BlackElo "2412"]
[TimeControl "180+2"]
[EndTime "13:08:44 PDT"]
[Termination "leoo2001 won by resignation"]

1. e4 {[%clk 0:03:00.7]} 1... e6 {[%clk 0:03:01.1]} 2. d4 {[%clk 0:03:01.1]}
2... d5 {[%clk 0:03:02.6]} 3. exd5 {[%clk 0:03:01.7]} 3... exd5 {[%clk 0:03:03]}
4. Nf3 {[%clk 0:03:03]} 4... Bd6 {[%clk 0:03:02.1]} 5. c4 {[%clk 0:03:03.8]}
5... dxc4 {[%clk 0:03:02.1]} 6. Bxc4 {[%clk 0:03:04.1]} 6... Nf6 {[%clk
0:03:03.4]} 7. Nc3 {[%clk 0:03:05.3]} 7... O-O {[%clk 0:03:02.7]} 8. O-O {[%clk
0:03:06.2]} 8... Nc6 {[%clk 0:02:59.8]} 9. h3 {[%clk 0:03:07]} 9... a6 {[%clk
0:02:55.6]} 10. Re1 {[%clk 0:03:03.5]} 10... Bf5 {[%clk 0:02:47.4]} 11. Bg5
{[%clk 0:02:59.4]} 11... h6 {[%clk 0:02:47.2]} 12. Bh4 {[%clk 0:03:00.3]} 12...
Be7 {[%clk 0:02:45.5]} 13. d5 {[%clk 0:02:51.2]} 13... Nb4 {[%clk 0:02:40.1]}
14. Rc1 {[%clk 0:02:08.5]} 14... b5 {[%clk 0:02:30.7]} 15. Nd4 {[%clk
0:02:07.1]} 15... Bg6 {[%clk 0:02:25.9]} 16. Bb3 {[%clk 0:02:00.5]} 16... Nd3
{[%clk 0:02:04.3]} 17. Nc6 {[%clk 0:01:57.9]} 17... Nxe1 {[%clk 0:01:32]} 18.
Nxd8 {[%clk 0:01:53.8]} 18... Nd3 {[%clk 0:01:32.7]} 19. Nc6 {[%clk 0:01:54.2]}
19... Bc5 {[%clk 0:01:28.8]} 20. Rc2 {[%clk 0:01:47.2]} 20... Rfe8 {[%clk
0:01:27.7]} 21. Re2 {[%clk 0:01:39.7]} 21... Nh5 {[%clk 0:01:13.7]} 22. Rxe8+
{[%clk 0:01:26.6]} 22... Rxe8 {[%clk 0:01:14.7]} 23. Kf1 {[%clk 0:01:22]} 23...
Nxb2 {[%clk 0:01:12.6]} 24. Qf3 {[%clk 0:01:18.5]} 24... Nd3 {[%clk 0:00:58.8]}
25. Ne2 {[%clk 0:01:01.9]} 25... Nhf4 {[%clk 0:00:58.3]} 26. Ne7+ {[%clk
0:00:57.3]} 26... Bxe7 {[%clk 0:00:48.4]} 27. Nxf4 {[%clk 0:00:57.7]} 27... Bb4
{[%clk 0:00:43.3]} 28. Kg1 {[%clk 0:00:42.1]} 28... Re1+ {[%clk 0:00:43.1]} 29.
Kh2 {[%clk 0:00:42.9]} 29... Bd6 {[%clk 0:00:45]} 30. Bg3 {[%clk 0:00:43.1]}
30... Be4 {[%clk 0:00:36.1]} 31. Nxd3 {[%clk 0:00:43.1]} 31... Bxf3 {[%clk
0:00:25.4]} 32. Nxe1 {[%clk 0:00:44]} 32... Bxg3+ {[%clk 0:00:26.5]} 33. Kxg3
{[%clk 0:00:44.3]} 33... Be4 {[%clk 0:00:28.4]} 34. Kf4 {[%clk 0:00:44.4]} 34...
Bb1 {[%clk 0:00:26.7]} 35. Ke5 {[%clk 0:00:44.3]} 35... Kf8 {[%clk 0:00:26.7]}
36. Kd4 {[%clk 0:00:44.7]} 36... Ke7 {[%clk 0:00:26.9]} 37. Kc5 {[%clk
0:00:45.9]} 37... Kd7 {[%clk 0:00:26.4]} 38. Nc2 {[%clk 0:00:46]} 38... f6
{[%clk 0:00:25.4]} 39. Nd4 {[%clk 0:00:46.7]} 39... Bd3 {[%clk 0:00:24.4]} 40.
Bc2 {[%clk 0:00:47]} 40... Bc4 {[%clk 0:00:24.8]} 41. Bf5+ {[%clk 0:00:47.6]}
41... Ke8 {[%clk 0:00:22.7]} 42. a3 {[%clk 0:00:49.1]} 42... Ba2 {[%clk
0:00:22.3]} 43. h4 {[%clk 0:00:49.8]} 43... Kf7 {[%clk 0:00:22.9]} 44. h5 {[%clk
0:00:50.9]} 44... Ke7 {[%clk 0:00:21.5]} 45. Be6 {[%clk 0:00:51.6]} 45... Bb1
{[%clk 0:00:20.1]} 46. Nf5+ {[%clk 0:00:52.2]} 46... Kf8 {[%clk 0:00:20.2]} 47.
Kc6 {[%clk 0:00:53.1]} 47... a5 {[%clk 0:00:20.2]} 48. Kxc7 {[%clk 0:00:53.6]}
48... b4 {[%clk 0:00:21.5]} 49. d6 {[%clk 0:00:54.5]} 1-0

[Event "*** Titled Tuesday Blitz"]
[Site "Chess.com"]
[Date "2018.06.05"]
[Round "1"]
[White "Zufi1811"]
[Black "awesomevishesh"]
[Result "1-0"]
[WhiteElo "2470"]
[BlackElo "2086"]
[TimeControl "180+2"]
[EndTime "13:08:49 PDT"]
[Termination "Zufi1811 won on time"]

1. e4 {[%clk 0:02:57]} 1... c5 {[%clk 0:03:00.1]} 2. Nf3 {[%clk 0:02:56]} 2...
Nc6 {[%clk 0:03:00.5]} 3. Bb5 {[%clk 0:02:54.9]} 3... g6 {[%clk 0:03:00.8]} 4.
O-O {[%clk 0:02:52.6]} 4... Bg7 {[%clk 0:03:01.1]} 5. Re1 {[%clk 0:02:53.9]}
5... Nf6 {[%clk 0:02:57.3]} 6. e5 {[%clk 0:02:53.4]} 6... Nd5 {[%clk 0:02:49.2]}
7. Nc3 {[%clk 0:02:49.1]} 7... Nc7 {[%clk 0:02:45.8]} 8. Bxc6 {[%clk 0:02:47.5]}
8... dxc6 {[%clk 0:02:45.1]} 9. Ne4 {[%clk 0:02:46.8]} 9... Ne6 {[%clk
0:02:01.6]} 10. d3 {[%clk 0:02:44.5]} 10... O-O {[%clk 0:01:53.3]} 11. Be3
{[%clk 0:02:44.7]} 11... b6 {[%clk 0:01:38.4]} 12. Qd2 {[%clk 0:02:45.3]} 12...
Nd4 {[%clk 0:01:21.9]} 13. Nxd4 {[%clk 0:02:43.5]} 13... cxd4 {[%clk 0:01:22.5]}
14. Bh6 {[%clk 0:02:45.4]} 14... Qd5 {[%clk 0:01:06.5]} 15. Ng3 {[%clk
0:02:34.6]} 15... c5 {[%clk 0:00:33.1]} 16. Bxg7 {[%clk 0:02:22.6]} 16... Kxg7
{[%clk 0:00:31.8]} 17. Qg5 {[%clk 0:02:24]} 17... Qe6 {[%clk 0:00:24.1]} 18.
Nh5+ {[%clk 0:01:50.9]} 18... Kh8 {[%clk 0:00:24]} 19. Nf4 {[%clk 0:01:43.3]}
19... Qd7 {[%clk 0:00:18.1]} 20. e6 {[%clk 0:01:22.2]} 20... fxe6 {[%clk
0:00:17.6]} 21. Nxe6 {[%clk 0:01:20.5]} 21... Rf5 {[%clk 0:00:17]} 22. Qh6
{[%clk 0:01:18.2]} 22... Rf7 {[%clk 0:00:14]} 23. Ng5 {[%clk 0:01:16]} 23... Rg7
{[%clk 0:00:12.1]} 24. Re5 {[%clk 0:01:11.7]} 24... Bb7 {[%clk 0:00:11.8]} 25.
Rae1 {[%clk 0:01:13.1]} 25... Rag8 {[%clk 0:00:06.5]} 26. f3 {[%clk 0:01:01.7]}
26... a5 {[%clk 0:00:06.2]} 27. Qh4 {[%clk 0:00:52.7]} 27... a4 {[%clk
0:00:06.4]} 28. Qf4 {[%clk 0:00:51.5]} 28... Re8 {[%clk 0:00:05.1]} 29. Nf7+
{[%clk 0:00:51.5]} 29... Kg8 {[%clk 0:00:05.7]} 30. Nh6+ {[%clk 0:00:53.4]}
30... Kh8 {[%clk 0:00:06.7]} 31. Re6 {[%clk 0:00:52.6]} 31... b5 {[%clk
0:00:06]} 32. Qe5 {[%clk 0:00:52.9]} 32... Bd5 {[%clk 0:00:06]} 33. Rd6 {[%clk
0:00:40.3]} 33... exd6 {[%clk 0:00:02.5]} 34. Qxe8+ {[%clk 0:00:40.8]} 34...
Qxe8 {[%clk 0:00:03.7]} 35. Rxe8+ {[%clk 0:00:42.1]} 35... Bg8 {[%clk
0:00:04.8]} 36. f4 {[%clk 0:00:37]} 36... c4 {[%clk 0:00:03.9]} 37. g4 {[%clk
0:00:26]} 37... cxd3 {[%clk 0:00:04.2]} 38. cxd3 {[%clk 0:00:26.1]} 38... g5
{[%clk 0:00:04.7]} 39. f5 {[%clk 0:00:26.3]} 39... b4 {[%clk 0:00:05.1]} 40. a3
{[%clk 0:00:26.4]} 40... bxa3 {[%clk 0:00:04.8]} 41. bxa3 {[%clk 0:00:28.3]}
41... d5 {[%clk 0:00:05.4]} 42. Kf2 {[%clk 0:00:29.8]} 1-0

[Event "*** Titled Tuesday Blitz"]
[Site "Chess.com"]
[Date "2018.06.05"]
[Round "1"]
[White "nihalsarin"]
[Black "vovachesss"]
[Result "1-0"]
[WhiteElo "2760"]
[BlackElo "2397"]
[TimeControl "180+2"]
[EndTime "13:08:50 PDT"]
[Termination "nihalsarin won by resignation"]

1. d4 {[%clk 0:03:01.9]} 1... Nf6 {[%clk 0:02:38]} 2. Nf3 {[%clk 0:03:03.3]}
2... e6 {[%clk 0:02:38.7]} 3. Bf4 {[%clk 0:03:01.4]} 3... d5 {[%clk 0:02:38.2]}
4. e3 {[%clk 0:03:02.9]} 4... Bd6 {[%clk 0:02:35.1]} 5. Bg3 {[%clk 0:03:03.5]}
5... O-O {[%clk 0:02:35.9]} 6. Nbd2 {[%clk 0:03:05]} 6... Qe7 {[%clk 0:02:36.7]}
7. Bd3 {[%clk 0:03:03.2]} 7... Nbd7 {[%clk 0:02:37.3]} 8. O-O {[%clk 0:02:51.9]}
8... e5 {[%clk 0:02:38.3]} 9. e4 {[%clk 0:02:25.6]} 9... dxe4 {[%clk 0:02:28.3]}
10. Nxe4 {[%clk 0:02:26]} 10... Nxe4 {[%clk 0:02:28.9]} 11. Bxe4 {[%clk
0:02:27.9]} 11... exd4 {[%clk 0:02:27.5]} 12. Qxd4 {[%clk 0:02:28.1]} 12... Bxg3
{[%clk 0:02:27.5]} 13. hxg3 {[%clk 0:02:30]} 13... Nc5 {[%clk 0:02:12.1]} 14.
Rfe1 {[%clk 0:02:17.6]} 14... Nxe4 {[%clk 0:02:01]} 15. Rxe4 {[%clk 0:02:19.5]}
15... Be6 {[%clk 0:02:02.4]} 16. Rae1 {[%clk 0:02:18.8]} 16... h6 {[%clk
0:01:57.9]} 17. b3 {[%clk 0:02:17.9]} 17... Rad8 {[%clk 0:01:57.7]} 18. Qxa7
{[%clk 0:02:17.2]} 18... Qf6 {[%clk 0:01:30.7]} 19. Qe3 {[%clk 0:02:09.7]} 19...
Rd6 {[%clk 0:01:26.7]} 20. Nd4 {[%clk 0:02:01.7]} 20... Bd5 {[%clk 0:01:20.5]}
21. Rf4 {[%clk 0:01:55.6]} 21... Qg6 {[%clk 0:01:19.2]} 22. Nf5 {[%clk
0:01:55.3]} 22... Re6 {[%clk 0:01:04]} 23. Ne7+ {[%clk 0:01:45.6]} 23... Rxe7
{[%clk 0:01:04.9]} 24. Qxe7 {[%clk 0:01:47.5]} 24... Qxc2 {[%clk 0:01:06.5]} 25.
Qe2 {[%clk 0:01:40.2]} 25... Qc6 {[%clk 0:01:02.6]} 26. f3 {[%clk 0:01:33.3]}
26... Be6 {[%clk 0:01:01.6]} 27. Re4 {[%clk 0:01:31.5]} 27... Ra8 {[%clk
0:01:01.8]} 28. Qd2 {[%clk 0:01:21.2]} 28... Qb6+ {[%clk 0:00:59.5]} 29. Kh2
{[%clk 0:01:22]} 29... Ra5 {[%clk 0:00:57.6]} 30. Re5 {[%clk 0:01:15.7]} 30...
Ra8 {[%clk 0:00:54]} 31. g4 {[%clk 0:01:14.4]} 31... c6 {[%clk 0:00:51.2]} 32.
Qd6 {[%clk 0:00:51.2]} 32... Rd8 {[%clk 0:00:49.8]} 33. Qe7 {[%clk 0:00:50.7]}
33... Qd4 {[%clk 0:00:47.1]} 34. Qxb7 {[%clk 0:00:42.4]} 34... Qf4+ {[%clk
0:00:47.5]} 35. Kh1 {[%clk 0:00:40.5]} 35... Rd2 {[%clk 0:00:41.5]} 36. Qxc6
{[%clk 0:00:23.1]} 36... Qg3 {[%clk 0:00:41.5]} 37. R5e2 {[%clk 0:00:22.6]}
37... Bd5 {[%clk 0:00:34.8]} 38. Qe8+ {[%clk 0:00:20.8]} 38... Kh7 {[%clk
0:00:35.5]} 39. Rxd2 {[%clk 0:00:22.7]} 39... Bxf3 {[%clk 0:00:36.1]} 40. gxf3
{[%clk 0:00:22]} 40... Qh3+ {[%clk 0:00:30.4]} 41. Rh2 {[%clk 0:00:22.7]} 41...
Qxf3+ {[%clk 0:00:31]} 42. Rg2 {[%clk 0:00:24.3]} 42... f5 {[%clk 0:00:26.6]}
43. gxf5 {[%clk 0:00:24.2]} 43... Qh3+ {[%clk 0:00:25.1]} 44. Kg1 {[%clk
0:00:24.8]} 44... Qxf5 {[%clk 0:00:26.9]} 45. Qe4 {[%clk 0:00:25.3]} 1-0

[Event "*** Titled Tuesday Blitz"]
[Site "Chess.com"]
[Date "2018.06.05"]
[Round "1"]
[White "TBergh98"]
[Black "MartinZumsande"]
[Result "1/2-1/2"]
[WhiteElo "2214"]
[BlackElo "2517"]
[TimeControl "180+2"]
[EndTime "13:08:56 PDT"]
[Termination "Game drawn by repetition"]

1. d4 {[%clk 0:03:01.9]} 1... d5 {[%clk 0:02:59.8]} 2. Nf3 {[%clk 0:03:02.8]}
2... Nf6 {[%clk 0:03:00.3]} 3. Bf4 {[%clk 0:03:04.2]} 3... e6 {[%clk 0:03:00.6]}
4. e3 {[%clk 0:03:05.4]} 4... Be7 {[%clk 0:02:58.3]} 5. Bd3 {[%clk 0:03:03.9]}
5... c5 {[%clk 0:02:59.4]} 6. c3 {[%clk 0:03:05]} 6... Nc6 {[%clk 0:03:00.8]} 7.
Nbd2 {[%clk 0:03:06]} 7... b6 {[%clk 0:03:01]} 8. O-O {[%clk 0:03:06.5]} 8...
Bb7 {[%clk 0:03:01.9]} 9. Ne5 {[%clk 0:02:59.8]} 9... Nxe5 {[%clk 0:03:02.2]}
10. Bxe5 {[%clk 0:03:01.2]} 10... O-O {[%clk 0:02:58.6]} 11. Qf3 {[%clk
0:02:50.1]} 11... Nd7 {[%clk 0:02:52.1]} 12. Bg3 {[%clk 0:02:26.2]} 12... Bf6
{[%clk 0:02:43.3]} 13. Rfe1 {[%clk 0:02:21.3]} 13... g6 {[%clk 0:02:30.4]} 14.
Rad1 {[%clk 0:02:13.9]} 14... e5 {[%clk 0:02:27.8]} 15. dxe5 {[%clk 0:02:09.2]}
15... Nxe5 {[%clk 0:02:29.7]} 16. Bxe5 {[%clk 0:02:09.9]} 16... Bxe5 {[%clk
0:02:30]} 17. e4 {[%clk 0:02:10.5]} 17... Bg7 {[%clk 0:02:04.8]} 18. Bb1 {[%clk
0:01:57.1]} 18... d4 {[%clk 0:02:01.2]} 19. cxd4 {[%clk 0:01:54.6]} 19... cxd4
{[%clk 0:02:02.3]} 20. Bd3 {[%clk 0:01:55.1]} 20... Rc8 {[%clk 0:01:58]} 21. Rc1
{[%clk 0:01:52]} 21... Qg5 {[%clk 0:01:55.5]} 22. Qe2 {[%clk 0:01:41.1]} 22...
Bh6 {[%clk 0:01:47.3]} 23. Rxc8 {[%clk 0:01:39]} 23... Rxc8 {[%clk 0:01:47]} 24.
Nc4 {[%clk 0:01:38.2]} 24... Qc5 {[%clk 0:01:37.3]} 25. e5 {[%clk 0:01:23.2]}
25... Qd5 {[%clk 0:01:28.1]} 26. f3 {[%clk 0:01:20.5]} 26... Ba6 {[%clk
0:01:21.6]} 27. Nd6 {[%clk 0:01:11]} 27... Be3+ {[%clk 0:01:16]} 28. Kh1 {[%clk
0:01:07.8]} 28... Bxd3 {[%clk 0:01:16.1]} 29. Qxd3 {[%clk 0:01:09]} 29... Rc5
{[%clk 0:01:09.1]} 30. f4 {[%clk 0:00:46.9]} 30... Qxa2 {[%clk 0:01:09]} 31. g3
{[%clk 0:00:38]} 31... Qd5+ {[%clk 0:00:58.7]} 32. Qe4 {[%clk 0:00:35.4]} 32...
Qxe4+ {[%clk 0:00:59.2]} 33. Nxe4 {[%clk 0:00:37.3]} 33... Rc2 {[%clk 0:01:00]}
34. Ra1 {[%clk 0:00:32.3]} 34... a5 {[%clk 0:00:58.2]} 35. Ra4 {[%clk 0:00:30]}
35... Rxb2 {[%clk 0:00:54.3]} 36. Rc4 {[%clk 0:00:28.5]} 36... Rb1+ {[%clk
0:00:55.6]} 37. Kg2 {[%clk 0:00:28.4]} 37... Rc1 {[%clk 0:00:57.1]} 38. Ra4
{[%clk 0:00:28.1]} 38... Kg7 {[%clk 0:00:55.7]} 39. Nf6 {[%clk 0:00:26.3]} 39...
h6 {[%clk 0:00:53.2]} 40. Kf3 {[%clk 0:00:25.7]} 40... Rc2 {[%clk 0:00:51.9]}
41. h3 {[%clk 0:00:24.8]} 41... Rb2 {[%clk 0:00:49.1]} 42. Rc4 {[%clk
0:00:25.2]} 42... h5 {[%clk 0:00:20.6]} 43. Rc8 {[%clk 0:00:21.5]} 43... a4
{[%clk 0:00:18.7]} 44. Rg8+ {[%clk 0:00:21.1]} 44... Kh6 {[%clk 0:00:20]} 45.
Rh8+ {[%clk 0:00:21.2]} 45... Kg7 {[%clk 0:00:21.2]} 46. Rg8+ {[%clk 0:00:21.9]}
46... Kh6 {[%clk 0:00:22.6]} 47. Rh8+ {[%clk 0:00:21.3]} 47... Kg7 {[%clk
0:00:23.8]} 48. Rg8+ {[%clk 0:00:22.8]} 48... Kh6 {[%clk 0:00:24.9]} 49. Rh8+
{[%clk 0:00:24.3]} 49... Kg7 {[%clk 0:00:26]} 1/2-1/2